fUSD/lending_fUSD_20241004
["ID","MTS","AMOUNT","RATE_DAILY","PERIOD"]
[339835740,1728052320445,-501.8633484,0.00039726,120]
[339835741,1728052320454,-501.86223027,0.00039726,120]
[339835742,1728052320464,-501.98237986,0.00039726,120]
[339835743,1728052320475,-649.65,0.00039726,120]
[339835744,1728052320486,-1103.96,0.00039726,120]
[339835745,1728052320497,-500.0,0.00039726,120]
[339835746,1728052320508,-500.0,0.00039726,120]
[339835747,1728052320519,-513.80856412,0.00039726,120]
[339835748,1728052320528,-500.0,0.00039726,120]
[339835749,1728052320537,-500.0,0.00039726,120]
[339835750,1728052320546,-500.0,0.00039726,120]
[339835751,1728052320555,-500.0,0.00039726,120]
[339835752,1728052320564,-500.0,0.00039726,120]
[339835753,1728052320574,-500.0,0.00039726,120]
[339835754,1728052320583,-501.97027901,0.00039726,120]
[339835755,1728052320592,-500.0,0.00039726,120]
[339835756,1728052320603,-500.0,0.00039726,120]
[339835757,1728052320613,-637.67,0.00039726,120]
[339835758,1728052320622,-200.0,0.00039726,7]
[339835759,1728052320631,-500.0,0.00039726,120]
[339835760,1728052320640,-500.0,0.00039726,120]
[339835761,1728052320649,-500.0,0.00039726,120]
[339835762,1728052320659,-500.0,0.00039726,120]
[339835763,1728052320668,-500.0,0.00039726,120]
[339835764,1728052320677,-500.0,0.00039726,120]
[339835765,1728052320686,-500.0,0.00039726,120]
[339835766,1728052320696,-500.0,0.00039726,120]
[339835767,1728052320704,-500.0,0.00039726,120]
[339835768,1728052320713,-502.0546031,0.00039726,120]
[339835769,1728052320722,-500.0,0.00039726,120]
[339835770,1728052320731,-500.0,0.00039726,120]
[339835771,1728052320741,-500.0,0.00039726,120]
[339835772,1728052320750,-500.0,0.00039726,120]
[339835773,1728052320759,-500.0,0.00039726,120]
[339835774,1728052320773,-1085.42,0.00039726,120]
[339835775,1728052320782,-500.0,0.00039726,120]
[339835776,1728052320791,-500.0,0.00039726,120]
[339835777,1728052320800,-500.0,0.00039726,120]
[339835778,1728052320809,-500.0,0.00039726,120]
[339835779,1728052320818,-281.39836361,0.00039726,120]
[339835780,1728052320827,-500.0,0.00039726,120]
[339835781,1728052320836,-501.98417053,0.00039726,120]
[339835782,1728052320846,-743.04,0.00039726,120]
[339835783,1728052320855,-500.0,0.00039726,120]
[339835784,1728052320864,-500.0,0.00039726,120]
[339835785,1728052320873,-496.97090186,0.00039726,120]
[339835786,1728052320882,-500.0,0.00039726,120]
[339835787,1728052320891,-500.0,0.00039726,120]
[339835788,1728052320900,-500.0,0.00039726,120]
[339835789,1728052320909,-500.0,0.00039726,120]
[339835790,1728052320918,-500.0,0.00039726,120]
[339835791,1728052320927,-880.08,0.00039726,120]
[339835792,1728052320936,-500.0,0.00039726,120]
[339835793,1728052320945,-500.0,0.00039726,120]
[339835794,1728052320953,-500.0,0.00039726,120]
[339835795,1728052320962,-500.0,0.00039726,120]
[339835796,1728052320971,-525.38,0.00039726,120]
[339835797,1728052320983,-500.0,0.00039726,120]
[339835798,1728052320992,-511.66,0.00039726,120]
[339835799,1728052321001,-500.0,0.00039726,120]
[339835800,1728052321011,-500.0,0.00039726,120]
[339835801,1728052321028,-500.0,0.00039726,120]
[339835802,1728052321037,-500.0,0.00039726,120]
[339835803,1728052321045,-500.0,0.00039726,120]
[339835804,1728052321054,-500.0,0.00039726,120]
[339835805,1728052321063,-500.0,0.00039726,120]
[339835806,1728052321072,-500.0,0.00039726,120]
[339835807,1728052321084,-500.0,0.00039726,120]
[339835808,1728052321093,-578.74,0.00039726,120]
[339835809,1728052321102,-500.0,0.00039726,120]
[339835810,1728052321111,-888.8,0.00039726,120]
[339835811,1728052321120,-636.04110328,0.00039726,120]
[339835812,1728052321129,-511.32384832,0.00039726,120]
[339835813,1728052321139,-500.0,0.00039726,120]
[339835814,1728052321148,-502.4513208,0.00039726,120]
[339835815,1728052321157,-500.0,0.00039726,120]
[339835816,1728052321166,-500.0,0.00039726,120]
[339835817,1728052321176,-500.0,0.00039726,120]
[339835818,1728052321186,-500.0,0.00039726,120]
[339835819,1728052321195,-500.0,0.00039726,120]
[339835820,1728052321205,-782.81,0.00039726,120]
[339835821,1728052321214,-389.3630046,0.00039726,120]
[339835822,1728052321223,-500.0,0.00039726,120]
[339835823,1728052321232,-500.0,0.00039726,120]
[339835824,1728052321242,-627.53,0.00039726,120]
[339835825,1728052321251,-500.0,0.00039726,120]
[339835826,1728052321261,-500.0,0.00039726,120]
[339835827,1728052321276,-500.0,0.00039726,120]
[339835828,1728052321286,-500.0,0.00039726,120]
[339835829,1728052321300,-942.19,0.00039726,120]
[339835830,1728052321309,-500.0,0.00039726,120]
[339835831,1728052321318,-612.72,0.00039726,120]
[339835832,1728052321328,-500.0,0.00039726,120]
[339835833,1728052321337,-500.0,0.00039726,120]
[339835834,1728052321346,-500.0,0.00039726,120]
[339835835,1728052321355,-500.0,0.00039726,120]
[339835836,1728052321365,-500.0,0.00039726,120]
[339835837,1728052321375,-553.18,0.00039726,120]
[339835838,1728052321385,-586.78871214,0.00039726,120]
[339835839,1728052321394,-500.0,0.00039726,120]
[339835840,1728052321403,-500.0,0.00039726,120]
[339835841,1728052321412,-500.0,0.00039726,120]
[339835842,1728052321421,-500.0,0.00039726,120]
[339835843,1728052321431,-898.91,0.00039726,120]
[339835844,1728052321440,-643.39,0.00039726,24]
[339835845,1728052321450,-1053.16,0.00039726,120]
[339835846,1728052321459,-574.04,0.00039726,120]
[339835847,1728052321469,-500.0,0.00039726,120]
[339835848,1728052321479,-810.52,0.00039726,120]
[339835849,1728052321488,-500.0,0.00039726,120]
[339835850,1728052321497,-806.27,0.00039726,120]
[339835851,1728052321506,-500.0,0.00039726,120]
[339835852,1728052321520,-500.0,0.00039726,120]
[339835853,1728052321529,-500.0,0.00039726,120]
[339835854,1728052321538,-500.0,0.00039726,120]
[339835855,1728052321547,-508.20985692,0.00039726,120]
[339835856,1728052321556,-500.0,0.00039726,120]
[339835857,1728052321565,-500.0,0.00039726,120]
[339835858,1728052321574,-501.19914309,0.00039726,120]
[339835859,1728052321584,-500.0,0.00039726,120]
[339835860,1728052321593,-500.0,0.00039726,120]
[339835861,1728052321602,-500.0,0.00039726,120]
[339835862,1728052321611,-500.0,0.00039726,120]
[339835863,1728052321620,-503.41033046,0.00039726,120]
[339835864,1728052321629,-519.64,0.00039726,120]
[339835865,1728052321638,-500.0,0.00039726,120]
[339835866,1728052321648,-500.92673678,0.00039726,120]
[339835867,1728052321657,-500.0,0.00039726,120]
[339835868,1728052321666,-500.0,0.00039726,120]
[339835869,1728052321676,-500.0,0.00039726,120]
[339835870,1728052321685,-500.0,0.00039726,120]
[339835871,1728052321695,-500.0,0.00039726,120]
[339835872,1728052321704,-1013.53,0.00039726,120]
[339835873,1728052321713,-500.0,0.00039726,120]
[339835874,1728052321723,-1310.29,0.00039726,120]
[339835875,1728052321732,-500.0,0.00039726,120]
[339835876,1728052321741,-500.0,0.00039726,120]
[339835877,1728052321751,-500.0,0.00039726,120]
[339835878,1728052321760,-500.0,0.00039726,120]
[339835879,1728052321776,-591.41,0.00039726,120]
[339835880,1728052321786,-500.0,0.00039726,120]
[339835881,1728052321796,-500.0,0.00039726,120]
[339835882,1728052321805,-500.0,0.00039726,120]
[339835883,1728052321814,-500.0,0.00039726,120]
[339835884,1728052321824,-500.0,0.00039726,120]
[339835885,1728052321833,-639.7,0.00039726,120]
[339835886,1728052321843,-500.0,0.00039726,120]
[339835887,1728052321852,-500.0,0.00039726,120]
[339835888,1728052321862,-506.00253354,0.00039726,120]
[339835889,1728052321871,-500.0,0.00039726,120]
[339835890,1728052321880,-1561.02,0.00039726,120]
[339835891,1728052321890,-500.0,0.00039726,120]
[339835892,1728052321900,-827.19,0.00039726,120]
[339835893,1728052321910,-500.0,0.00039726,120]
[339835894,1728052321920,-4363.93,0.00039726,2]
[339835895,1728052321929,-500.0,0.00039726,120]
[339835896,1728052321939,-500.0,0.00039726,120]
[339835897,1728052321948,-500.0,0.00039726,120]
[339835898,1728052321959,-500.0,0.00039726,120]
[339835899,1728052321969,-500.0,0.00039726,120]
[339835900,1728052321980,-500.0,0.00039726,120]
[339835901,1728052321989,-500.0,0.00039726,120]
[339835902,1728052322000,-563.6,0.00039726,120]
[339835903,1728052322010,-500.0,0.00039726,120]
[339835904,1728052322024,-500.0,0.00039726,120]
[339835905,1728052322033,-500.0,0.00039726,120]
[339835906,1728052322042,-743.62,0.00039726,120]
[339835907,1728052322051,-500.0,0.00039726,120]
[339835908,1728052322061,-500.0,0.00039726,120]
[339835909,1728052322070,-500.0,0.00039726,120]
[339835910,1728052322080,-500.0,0.00039726,120]
[339835911,1728052322089,-500.0,0.00039726,120]
[339835912,1728052322098,-559.23,0.00039726,120]
[339835913,1728052322109,-500.0,0.00039726,120]
[339835914,1728052322119,-500.0,0.00039726,120]
[339835915,1728052322128,-500.0,0.00039726,120]
[339835916,1728052322138,-500.0,0.00039726,120]
[339835917,1728052322148,-500.0,0.00039726,120]
[339835918,1728052322158,-500.0,0.00039726,120]
[339835919,1728052322167,-500.0,0.00039726,120]
[339835920,1728052322177,-500.0,0.00039726,120]
[339835921,1728052322186,-500.0,0.00039726,120]
[339835922,1728052322196,-501.34815732,0.00039726,120]
[339835923,1728052322205,-500.0,0.00039726,120]
[339835924,1728052322214,-500.0,0.00039726,120]
[339835925,1728052322223,-500.0,0.00039726,120]
[339835926,1728052322233,-500.0,0.00039726,120]
[339835927,1728052322243,-645.48,0.00039726,120]
[339835928,1728052322252,-500.0,0.00039726,120]
[339835929,1728052322264,-500.88504443,0.00039726,120]
[339835930,1728052322274,-500.0,0.00039726,120]
[339835931,1728052322283,-811.53,0.00039726,120]
[339835932,1728052322295,-500.0,0.00039726,120]
[339835933,1728052322304,-500.0,0.00039726,120]
[339835934,1728052322314,-500.0,0.00039726,120]
[339835935,1728052322323,-500.0,0.00039726,120]
[339835936,1728052322332,-500.0,0.00039726,120]
[339835937,1728052322341,-500.0,0.00039726,120]
[339835938,1728052322350,-500.0,0.00039726,120]
[339835939,1728052322360,-500.0,0.00039726,120]
[339835940,1728052322368,-1108.69,0.00039726,120]
[339835941,1728052322378,-500.0,0.00039726,120]
[339835942,1728052322387,-500.75568542,0.00039726,120]
[339835943,1728052322396,-500.0,0.00039726,120]
[339835944,1728052322405,-500.0,0.00039726,120]
[339835945,1728052322415,-500.0,0.00039726,120]
[339835946,1728052322424,-500.0,0.00039726,120]
[339835947,1728052322435,-500.0,0.00039726,120]
[339835948,1728052322444,-500.0,0.00039726,120]
[339835949,1728052322454,-649.16,0.00039726,120]
[339835950,1728052322463,-500.0,0.00039726,120]
[339835951,1728052322472,-500.0,0.00039726,5]
[339835952,1728052322482,-500.0,0.00039726,120]
[339835953,1728052322491,-500.0,0.00039726,120]
[339835954,1728052322500,-741.25,0.00039726,120]
[339835955,1728052322509,-500.0,0.00039726,120]
[339835956,1728052322521,-983.7,0.00039726,14]
[339835957,1728052322530,-500.0,0.00039726,120]
[339835958,1728052322539,-300.54976747,0.00039726,120]
[339835959,1728052322548,-289.26021239,0.00039726,120]
[339835960,1728052322558,-879.29,0.00039726,120]
[339835961,1728052322567,-500.0,0.00039726,120]
[339835962,1728052322576,-696.42,0.00039726,120]
[339835963,1728052322585,-500.0,0.00039726,120]
[339835964,1728052322595,-1000.0,0.00039726,120]
[339835965,1728052322604,-500.0,0.00039726,120]
[339835966,1728052322613,-500.0,0.00039726,120]
[339835967,1728052322622,-1063.83,0.00039726,120]
[339835968,1728052322631,-727.52,0.00039726,120]
[339835969,1728052322640,-500.0,0.00039726,120]
[339835970,1728052322649,-500.0,0.00039726,120]
[339835971,1728052322658,-500.0,0.00039726,120]
[339835972,1728052322668,-500.0,0.00039726,120]
[339835973,1728052322677,-500.0,0.00039726,120]
[339835974,1728052322687,-500.0,0.00039726,120]
[339835975,1728052322696,-500.81254815,0.00039726,120]
[339835976,1728052322705,-742.02,0.00039726,120]
[339835977,1728052322714,-500.0,0.00039726,120]
[339835978,1728052322724,-500.0,0.00039726,120]
[339835979,1728052322734,-800.71,0.00039726,120]
[339835980,1728052322744,-531.4,0.00039726,120]
[339835981,1728052322754,-500.0,0.00039726,120]
[339835982,1728052322767,-500.0,0.00039726,120]
[339835983,1728052322777,-500.0,0.00039726,120]
[339835984,1728052322787,-500.0,0.00039726,120]
[339835985,1728052322796,-607.06,0.00039726,120]
[339835986,1728052322806,-542.93,0.00039726,120]
[339835987,1728052322816,-500.0,0.00039726,120]
[339835988,1728052322826,-500.0,0.00039726,120]
[339835989,1728052322836,-572.2,0.00039726,120]
[339835990,1728052322846,-1926.06,0.00039726,120]
[339835991,1728052322856,-977.76,0.00039726,120]
[339835992,1728052322866,-500.0,0.00039726,120]
[339835993,1728052322875,-500.0,0.00039726,120]
[339835994,1728052322884,-500.0,0.00039726,120]
[339835995,1728052322893,-500.0,0.00039726,120]
[339835996,1728052322903,-500.0,0.00039726,120]
[339835997,1728052322913,-500.0,0.00039726,120]
[339835998,1728052322924,-500.0,0.00039726,120]
[339835999,1728052322934,-1025.77,0.00039726,120]
[339836000,1728052322944,-287.09968699,0.00039726,120]
[339836001,1728052322954,-500.0,0.00039726,120]
[339836002,1728052322964,-500.0,0.00039726,120]
[339836003,1728052322974,-505.65291943,0.00039726,120]
[339836004,1728052322984,-500.0,0.00039726,120]
[339836005,1728052322994,-540.67354286,0.00039726,120]
[339836006,1728052323006,-500.66836898,0.00039726,120]
[339836007,1728052323019,-500.0,0.00039726,120]
[339836008,1728052323029,-500.0,0.00039726,120]
[339836009,1728052323039,-500.0,0.00039726,120]
[339836010,1728052323049,-876.92,0.00039726,120]
[339836011,1728052323059,-634.02,0.00039726,120]
[339836012,1728052323069,-500.0,0.00039726,120]
[339836013,1728052323080,-500.0,0.00039726,120]
[339836014,1728052323090,-500.0,0.00039726,120]
[339836015,1728052323101,-586.53,0.00039726,120]
[339836016,1728052323110,-503.06440577,0.00039726,120]
[339836017,1728052323121,-500.0,0.00039726,120]
[339836018,1728052323131,-500.0,0.00039726,120]
[339836019,1728052323141,-500.0,0.00039726,120]
[339836020,1728052323150,-500.0,0.00039726,120]
[339836021,1728052323160,-500.0,0.00039726,120]
[339836022,1728052323170,-500.0,0.00039726,120]
[339836023,1728052323180,-500.0,0.00039726,120]
[339836024,1728052323189,-500.0,0.00039726,2]
[339836025,1728052323199,-500.0,0.00039726,120]
[339836026,1728052323209,-500.0,0.00039726,120]
[339836027,1728052323218,-500.0,0.00039726,120]
[339836028,1728052323229,-500.0,0.00039726,120]
[339836029,1728052323239,-503.42878479,0.00039726,120]
[339836030,1728052323248,-500.0,0.00039726,120]
[339836031,1728052323258,-500.0,0.00039726,120]
[339836032,1728052323270,-500.0,0.00039726,120]
[339836033,1728052323279,-500.0,0.00039726,120]
[339836034,1728052323290,-500.0,0.00039726,120]
[339836035,1728052323302,-500.0,0.00039726,120]
[339836036,1728052323312,-500.0,0.00039726,120]
[339836037,1728052323322,-500.0,0.00039726,120]
[339836038,1728052323331,-500.0,0.00039726,120]
[339836039,1728052323341,-500.0,0.00039726,120]
[339836040,1728052323351,-500.0,0.00039726,120]
[339836041,1728052323361,-500.0,0.00039726,120]
[339836042,1728052323371,-500.0,0.00039726,120]
[339836043,1728052323381,-500.0,0.00039726,120]
[339836044,1728052323391,-500.0,0.00039726,120]
[339836045,1728052323400,-997.26,0.00039726,120]
[339836046,1728052323410,-500.0,0.00039726,120]
[339836047,1728052323420,-285.657354,0.00039726,120]
[339836048,1728052323430,-501.83858876,0.00039726,120]
[339836049,1728052323440,-500.0,0.00039726,120]
[339836050,1728052323450,-500.0,0.00039726,120]
[339836051,1728052323460,-500.0,0.00039726,120]
[339836052,1728052323470,-649.23,0.00039726,120]
[339836053,1728052323481,-500.0,0.00039726,120]
[339836054,1728052323491,-1071.81,0.00039726,120]
[339836055,1728052323501,-500.0,0.00039726,120]
[339836056,1728052323514,-500.0,0.00039726,120]
[339836057,1728052323524,-500.0,0.00039726,120]
[339836058,1728052323534,-812.57,0.00039726,120]
[339836059,1728052323544,-500.0,0.00039726,120]
[339836060,1728052323555,-500.0,0.00039726,120]
[339836061,1728052323565,-500.0,0.00039726,120]
[339836062,1728052323575,-500.0,0.00039726,120]
[339836063,1728052323585,-638.93,0.00039726,120]
[339836064,1728052323595,-500.0,0.00039726,120]
[339836065,1728052323605,-605.12,0.00039726,120]
[339836066,1728052323616,-500.0,0.00039726,120]
[339836067,1728052323626,-500.0,0.00039726,120]
[339836068,1728052323636,-500.0,0.00039726,120]
[339836069,1728052323647,-500.0,0.00039726,120]
[339836070,1728052323656,-500.0,0.00039726,2]
[339836071,1728052323666,-500.0,0.00039726,120]
[339836072,1728052323677,-517.57,0.00039726,120]
[339836073,1728052323688,-503.35440368,0.00039726,120]
[339836074,1728052323699,-500.0,0.00039726,120]
[339836075,1728052323709,-500.0,0.00039726,120]
[339836076,1728052323720,-500.0,0.00039726,120]
[339836077,1728052323730,-500.0,0.00039726,120]
[339836078,1728052323740,-1187.88,0.00039726,120]
[339836079,1728052323749,-1345.49,0.00039726,120]
[339836080,1728052323759,-435.08118983,0.00039726,120]
[339836081,1728052323773,-500.0,0.00039726,120]
[339836082,1728052323783,-500.0,0.00039726,120]
[339836083,1728052323794,-500.0,0.00039726,120]
[339836084,1728052323805,-501.87165305,0.00039726,120]
[339836085,1728052323815,-500.0,0.00039726,120]
[339836086,1728052323824,-500.0,0.00039726,120]
[339836087,1728052323834,-500.0,0.00039726,120]
[339836088,1728052323844,-500.0,0.00039726,120]
[339836089,1728052323854,-501.91034776,0.00039726,120]
[339836090,1728052323864,-500.0,0.00039726,120]
[339836091,1728052323875,-500.88474834,0.00039726,120]
[339836092,1728052323885,-500.0,0.00039726,120]
[339836093,1728052323896,-1287.48,0.00039726,120]
[339836094,1728052323907,-622.3,0.00039726,120]
[339836095,1728052323916,-500.0,0.00039726,120]
[339836096,1728052323926,-500.0,0.00039726,120]
[339836097,1728052323936,-500.0,0.00039726,120]
[339836098,1728052323946,-503.27239396,0.00039726,120]
[339836099,1728052323956,-599.91,0.00039726,120]
[339836100,1728052323966,-500.0,0.00039726,120]
[339836101,1728052323977,-500.0,0.00039726,30]
[339836102,1728052323987,-500.0,0.00039726,120]
[339836103,1728052323997,-500.0,0.00039726,120]
[339836104,1728052324009,-150.0,0.00039726,120]
[339836105,1728052324021,-916.31,0.00039726,120]
[339836106,1728052324030,-500.95791153,0.00039726,120]
[339836107,1728052324040,-1282.57,0.00039726,120]
[339836108,1728052324050,-594.74,0.00039726,120]
[339836109,1728052324060,-500.0,0.00039726,120]
[339836110,1728052324070,-500.51154661,0.00039726,120]
[339836111,1728052324080,-501.9081058,0.00039726,120]
[339836112,1728052324090,-500.0,0.00039726,120]
[339836113,1728052324100,-501.69729709,0.00039726,120]
[339836114,1728052324110,-500.0,0.00039726,120]
[339836115,1728052324120,-500.0,0.00039726,120]
[339836116,1728052324130,-500.0,0.00039726,120]
[339836117,1728052324140,-500.0,0.00039726,120]
[339836118,1728052324150,-500.0,0.00039726,120]
[339836119,1728052324160,-614.65,0.00039726,120]
[339836120,1728052324170,-500.0,0.00039726,120]
[339836121,1728052324180,-500.0,0.00039726,120]
[339836122,1728052324191,-502.02903635,0.00039726,120]
[339836123,1728052324200,-502.04807129,0.00039726,120]
[339836124,1728052324211,-569.04,0.00039726,120]
[339836125,1728052324220,-500.0,0.00039726,120]
[339836126,1728052324230,-501.14970781,0.00039726,120]
[339836127,1728052324239,-500.0,0.00039726,120]
[339836128,1728052324250,-500.0,0.00039726,120]
[339836129,1728052324260,-500.0,0.00039726,120]
[339836130,1728052324273,-896.69,0.00039726,120]
[339836131,1728052324283,-1266.27,0.00039726,7]
[339836132,1728052324297,-502.16943944,0.00039726,120]
[339836133,1728052324308,-500.0,0.00039726,120]
[339836134,1728052324318,-500.0,0.00039726,120]
[339836135,1728052324328,-500.0,0.00039726,120]
[339836136,1728052324338,-500.0,0.00039726,120]
[339836137,1728052324348,-500.0,0.00039726,120]
[339836138,1728052324358,-547.54,0.00039726,120]
[339836139,1728052324368,-948.94,0.00039726,120]
[339836140,1728052324379,-500.0,0.00039726,120]
[339836141,1728052324388,-500.0,0.00039726,120]
[339836142,1728052324398,-500.0,0.00039726,120]
[339836143,1728052324408,-500.0,0.00039726,120]
[339836144,1728052324418,-500.0,0.00039726,120]
[339836145,1728052324428,-500.0,0.00039726,120]
[339836146,1728052324438,-500.0,0.00039726,120]
[339836147,1728052324448,-500.0,0.00039726,120]
[339836148,1728052324458,-763.53,0.00039726,120]
[339836149,1728052324468,-500.0,0.00039726,120]
[339836150,1728052324478,-501.85261892,0.00039726,120]
[339836151,1728052324488,-1391.13,0.00039726,120]
[339836152,1728052324498,-500.0,0.00039726,120]
[339836153,1728052324508,-500.0,0.00039726,120]
[339836154,1728052324519,-1983.22,0.00039726,120]
[339836155,1728052324529,-501.7004218,0.00039726,120]
[339836156,1728052324539,-500.0,0.00039726,120]
[339836157,1728052324550,-906.8,0.00039726,120]
[339836158,1728052324560,-500.0,0.00039726,120]
[339836159,1728052324570,-604.79,0.00039726,120]
[339836160,1728052324580,-639.5,0.00039726,120]
[339836161,1728052324590,-502.15482563,0.00039726,120]
[339836162,1728052324601,-500.0,0.00039726,120]
[339836163,1728052324611,-500.0,0.00039726,120]
[339836164,1728052324622,-544.12655518,0.00039726,120]
[339836165,1728052324632,-500.0,0.00039726,120]
[339836166,1728052324642,-505.78364459,0.00039726,120]
[339836167,1728052324651,-500.0,0.00039726,120]
[339836168,1728052324661,-542.48,0.00039726,120]
[339836169,1728052324672,-693.45,0.00039726,120]
[339836170,1728052324682,-500.0,0.00039726,120]
[339836171,1728052324693,-500.0,0.00039726,120]
[339836172,1728052324703,-550.13350341,0.00039726,120]
[339836173,1728052324713,-500.0,0.00039726,120]
[339836174,1728052324723,-500.0,0.00039726,120]
[339836175,1728052324734,-500.0,0.00039726,120]
[339836176,1728052324746,-2885.95,0.00039726,120]
[339836177,1728052324757,-500.0,0.00039726,120]
[339836178,1728052324769,-2412.58,0.00039726,120]
[339836179,1728052324779,-581.68,0.00039726,120]
[339836180,1728052324789,-500.0,0.00039726,120]
[339836181,1728052324799,-714.4,0.00039726,120]
[339836182,1728052324809,-527.07,0.00039726,120]
[339836183,1728052324818,-500.0,0.00039726,120]
[339836184,1728052324828,-500.0,0.00039726,120]
[339836185,1728052324838,-500.0,0.00039726,120]
[339836186,1728052324847,-1396.61,0.00039726,120]
[339836187,1728052324857,-500.0,0.00039726,120]
[339836188,1728052324867,-1592.74,0.00039726,21]
[339836189,1728052324877,-500.0,0.00039726,120]
[339836190,1728052324887,-500.0,0.00039726,120]
[339836191,1728052324897,-500.0,0.00039726,120]
[339836192,1728052324906,-500.0,0.00039726,120]
[339836193,1728052324916,-500.0,0.00039726,120]
[339836194,1728052324927,-500.0,0.00039726,120]
[339836195,1728052324937,-923.99,0.00039726,120]
[339836196,1728052324947,-500.0,0.00039726,120]
[339836197,1728052325166,-500.0,0.00039726,120]
[339836198,1728052325179,-1453.68,0.00039726,120]
[339836199,1728052325189,-1372.86,0.00039726,120]
[339836200,1728052325199,-500.0,0.00039726,120]
[339836201,1728052325209,-500.0,0.00039726,120]
[339836202,1728052325218,-744.3,0.00039726,120]
[339836203,1728052325227,-500.0,0.00039726,120]
[339836204,1728052325237,-1283.59,0.00039726,120]
[339836205,1728052325247,-500.82458776,0.00039726,120]
[339836206,1728052325256,-500.0,0.00039726,120]
[339836207,1728052325266,-500.0,0.00039726,120]
[339836208,1728052325275,-500.0,0.00039726,120]
[339836209,1728052325284,-500.0,0.00039726,120]
[339836210,1728052325297,-503.55982719,0.00039726,120]
[339836211,1728052325306,-893.06,0.00039726,120]
[339836212,1728052325315,-947.29,0.00039726,120]
[339836213,1728052325324,-500.0,0.00039726,120]
[339836214,1728052325334,-500.0,0.00039726,120]
[339836215,1728052325344,-500.0,0.00039726,120]
[339836216,1728052325353,-500.0,0.00039726,120]
[339836217,1728052325363,-1424.36,0.00039726,120]
[339836218,1728052325373,-500.0,0.00039726,120]
[339836219,1728052325383,-1090.27,0.00039726,120]
[339836220,1728052325393,-519.47479406,0.00039726,120]
[339836221,1728052325402,-500.0,0.00039726,120]
[339836222,1728052325412,-827.5,0.00039726,120]
[339836223,1728052325421,-647.57,0.00039726,120]
[339836224,1728052325431,-500.0,0.00039726,120]
[339836225,1728052325442,-500.0,0.00039726,120]
[339836226,1728052325452,-1055.93,0.00039726,120]
[339836227,1728052325462,-500.0,0.00039726,120]
[339836228,1728052325474,-500.0,0.00039726,120]
[339836229,1728052325485,-500.0,0.00039726,120]
[339836230,1728052325495,-2611.45,0.00039726,120]
[339836231,1728052325506,-578.92,0.00039726,120]
[339836232,1728052325517,-500.0,0.00039726,120]
[339836233,1728052325527,-2091.62,0.00039726,120]
[339836234,1728052325536,-661.05,0.00039726,120]
[339836235,1728052325546,-500.0,0.00039726,120]
[339836236,1728052325558,-500.0,0.00039726,120]
[339836237,1728052325568,-1075.43,0.00039726,120]
[339836238,1728052325579,-1153.94,0.00039726,120]
[339836239,1728052325588,-500.0,0.00039726,120]